bitfinex-derivatives/quotes_BTCF0:USTF0_20250729
["timestamp","ask_amount","ask_price","bid_price","bid_amount"]
[1753789386483,1.14072596,118510.0,118500.0,1.00623448]
[1753789386780,1.14272596,118510.0,118500.0,1.2321386]
[1753789388389,1.14372596,118510.0,118500.0,0.02176018]
[1753789388580,1.14372596,118510.0,118500.0,0.87938518]
[1753789389486,1.64372596,118510.0,118500.0,0.87938518]
[1753789389691,1.64372596,118510.0,118500.0,1.1052893]
[1753789390482,2.33244596,118510.0,118500.0,1.1052893]
[1753789391087,2.33244596,118510.0,118500.0,0.87938518]
[1753789391488,2.33244596,118510.0,118500.0,0.87918518]
[1753789391889,2.33244596,118510.0,118500.0,0.90192362]
[1753789392790,2.33244596,118510.0,118500.0,0.87918518]
[1753789392991,2.33244596,118510.0,118500.0,1.1050893]
[1753789393493,2.33244596,118510.0,118500.0,0.4164493]
[1753789394191,2.33244596,118510.0,118500.0,0.43918774]
[1753789399294,2.33244596,118510.0,118500.0,0.4164493]
[1753789403193,1.47495516,118510.0,118500.0,0.4164493]
[1753789403691,1.23142516,118510.0,118500.0,0.4164493]
[1753789403896,1.47498516,118510.0,118500.0,0.4164493]
[1753789404097,0.97498516,118510.0,118500.0,0.4164493]
[1753789404596,0.61418516,118510.0,118500.0,0.4164493]
[1753789406100,0.61418516,118510.0,118500.0,0.43918774]
[1753789407101,0.97398516,118510.0,118500.0,0.43918774]
[1753789409000,0.61318516,118510.0,118500.0,0.43918774]
[1753789409196,0.97398516,118510.0,118500.0,0.43918774]
[1753789414207,0.97398516,118510.0,118500.0,0.46956435]
[1753789414608,0.61318516,118510.0,118500.0,0.46956435]
[1753789415107,0.61318516,118510.0,118500.0,0.44682591]
[1753789415308,0.61318516,118510.0,118500.0,0.46956512]
[1753789416504,0.61318516,118510.0,118500.0,0.44682591]
[1753789416803,0.61318516,118510.0,118500.0,0.80762591]
[1753789417700,0.61318516,118510.0,118500.0,0.80751047]
[1753789418300,0.13660516,118510.0,118500.0,1.03341459]
[1753789418501,0.18569516,118510.0,118500.0,1.03441459]
[1753789418700,0.43008,118520.0,118510.0,0.1990711]
[1753789418904,0.54008,118520.0,118510.0,1.41477042]
[1753789419109,0.54008,118520.0,118510.0,1.77557042]
[1753789419310,0.11,118520.0,118510.0,1.77557042]
[1753789419510,0.11,118520.0,118510.0,1.79753205]
[1753789420308,0.28053,118520.0,118510.0,1.79753205]
[1753789420811,0.58917,118520.0,118510.0,1.79753205]
[1753789422118,0.34561,118520.0,118510.0,1.82790866]
[1753789422307,0.34561,118520.0,118510.0,1.79753205]
[1753789422308,0.31479,118520.0,118510.0,1.79753205]
[1753789422513,0.20808,118520.0,118510.0,1.79753205]
[1753789424420,0.20808,118520.0,118510.0,1.80517758]
[1753789424623,0.11,118520.0,118510.0,1.97392957]
[1753789425117,0.15658,118520.0,118510.0,1.52212133]
[1753789426322,0.15658,118520.0,118510.0,1.97392957]
[1753789426615,0.15658,118520.0,118510.0,1.80517758]
[1753789426921,0.11,118520.0,118510.0,1.97392957]
[1753789427221,0.15658,118520.0,118510.0,1.97392957]
[1753789428722,0.15658,118520.0,118510.0,1.80517758]
[1753789429721,0.15658,118520.0,118510.0,1.82691316]
[1753789430119,0.44609,118530.0,118520.0,0.1687565]
[1753789430322,0.58671,118530.0,118520.0,1.07185032]
[1753789430626,0.60130405,118530.0,118520.0,1.07185032]
[1753789430818,0.60130405,118530.0,118520.0,1.10222693]
[1753789431219,0.60130405,118530.0,118520.0,1.07185032]
[1753789431421,0.60230405,118530.0,118520.0,1.07185032]
[1753789431920,0.60230405,118530.0,118520.0,1.0945342]
[1753789435034,0.60230405,118530.0,118520.0,0.71105032]
[1753789438237,0.60230405,118530.0,118520.0,0.74142693]
[1753789438636,0.60230405,118530.0,118520.0,0.71105032]
[1753789438837,0.58771,118530.0,118520.0,0.68931474]
[1753789439039,0.60230486,118530.0,118520.0,0.74142355]
[1753789439238,0.60230486,118530.0,118520.0,0.71104694]
[1753789440139,0.60230486,118530.0,118520.0,0.74142355]
[1753789441139,0.60230486,118530.0,118520.0,1.10222355]
[1753789443139,0.12559486,118530.0,118520.0,1.10222355]
[1753789443344,0.17217486,118530.0,118520.0,1.10209314]
[1753789443645,0.10000006,118530.0,118520.0,1.07184694]
[1753789443940,0.44609,118550.0,118530.0,0.0738925]
[1753789444143,0.44609,118550.0,118540.0,1.2885096]
[1753789444144,0.55013,118550.0,118540.0,1.2885096]
[1753789444340,0.55013,118550.0,118540.0,1.3102418]
[1753789444745,0.59671,118550.0,118540.0,1.3102418]
[1753789445242,0.61890132,118550.0,118540.0,1.3102418]
[1753789446346,0.61890132,118550.0,118540.0,1.6710418]
[1753789446947,0.78861522,118550.0,118540.0,1.6340018]
[1753789447144,0.78861522,118550.0,118540.0,1.3102418]
[1753789448145,0.78861522,118550.0,118540.0,1.31780206]
[1753789449039,0.35848522,118550.0,118540.0,1.64156206]
[1753789449246,0.59771,118550.0,118540.0,1.67860206]
[1753789449442,0.7664241,118550.0,118540.0,1.67860206]
[1753789450751,0.7664241,118550.0,118540.0,0.48878506]
[1753789451053,1.1272241,118550.0,118540.0,0.48121729]
[1753789451244,1.1272241,118550.0,118540.0,0.25531317]
[1753789451446,1.1272241,118550.0,118540.0,0.95507317]
[1753789451751,1.6272241,118550.0,118540.0,0.95507317]
[1753789452748,1.6272241,118550.0,118540.0,1.18097729]
[1753789452950,1.5794741,118550.0,118540.0,1.18097729]
[1753789455349,1.5794741,118550.0,118540.0,1.18045729]
[1753789455649,1.5794741,118550.0,118540.0,1.18029729]
[1753789455850,1.59407078,118550.0,118540.0,1.18029729]
[1753789456651,1.59407078,118550.0,118540.0,1.17993729]
[1753789460150,1.23327078,118550.0,118540.0,1.17993729]
[1753789462055,1.23327078,118550.0,118540.0,1.21017833]
[1753789464156,1.23327078,118550.0,118540.0,0.99334094]
[1753789464354,1.23327078,118550.0,118540.0,1.21924506]
[1753789466352,1.23327078,118550.0,118540.0,1.24194666]
[1753789467158,1.23327078,118550.0,118540.0,1.21924506]
[1753789467656,1.23328435,118550.0,118540.0,1.2192704]
[1753789469853,1.59408435,118550.0,118540.0,1.01608812]
[1753789470059,1.59408435,118550.0,118540.0,1.2117512]
[1753789470359,1.59408435,118550.0,118540.0,1.23967224]
[1753789470753,1.23328435,118550.0,118540.0,1.23967224]
[1753789470955,1.59408435,118550.0,118540.0,1.2094312]
[1753789471262,1.23328435,118550.0,118540.0,1.2094312]
[1753789471558,1.23328435,118550.0,118540.0,1.2169504]
[1753789471959,1.23328435,118550.0,118540.0,1.2167904]
[1753789472355,1.59408435,118550.0,118540.0,1.2173504]
[1753789472661,0.78006435,118550.0,118540.0,1.2173504]
[1753789473860,1.14086435,118550.0,118540.0,1.2173504]
[1753789474355,1.14086435,118550.0,118540.0,0.29464628]
[1753789474562,1.14086435,118550.0,118540.0,1.2172704]
[1753789478362,1.14086435,118550.0,118540.0,0.5205504]
[1753789478564,1.14086435,118550.0,118540.0,1.2159904]
[1753789479865,1.14086435,118550.0,118540.0,0.99008628]
[1753789480064,1.14086435,118550.0,118540.0,1.2159904]
[1753789480265,0.78006435,118550.0,118540.0,1.2159904]
[1753789480467,1.14086435,118550.0,118540.0,1.2159904]
[1753789480668,0.78006435,118550.0,118540.0,1.2159904]
[1753789480867,0.78006435,118550.0,118540.0,1.3285072]
[1753789481166,1.14086435,118550.0,118540.0,1.3285072]
[1753789481771,1.14086435,118550.0,118540.0,0.99008628]
[1753789481969,1.14086435,118550.0,118540.0,1.32100155]
[1753789482269,0.78006435,118550.0,118540.0,1.32100155]
[1753789482972,1.14086435,118550.0,118540.0,1.32100155]
[1753789484562,0.78006435,118550.0,118540.0,1.32100155]
[1753789485068,1.14086435,118550.0,118540.0,1.32100155]
[1753789485270,0.78006435,118550.0,118540.0,1.32100155]
[1753789486068,1.14086435,118550.0,118540.0,1.32100155]
[1753789486472,1.31007481,118550.0,118540.0,0.98086063]
[1753789486771,1.31007481,118550.0,118540.0,1.31928155]
[1753789486977,1.14086435,118550.0,118540.0,1.31928155]
[1753789487567,1.31007481,118550.0,118540.0,0.98086063]
[1753789487762,1.31007481,118550.0,118540.0,1.31928155]
[1753789489074,1.14086435,118550.0,118540.0,1.31928155]
[1753789491677,1.14086435,118550.0,118540.0,0.98086063]
[1753789491973,1.31007481,118550.0,118540.0,0.95662628]
[1753789492177,1.31007481,118550.0,118540.0,0.91412708]
[1753789492475,1.31007481,118550.0,118540.0,1.10607642]
[1753789492676,1.81007481,118550.0,118540.0,1.11607642]
[1753789492872,1.81007481,118550.0,118540.0,1.08583538]
[1753789495183,1.64086435,118550.0,118540.0,1.08583538]
[1753789495380,1.81007481,118550.0,118540.0,1.23230706]
[1753789499279,1.64086435,118550.0,118540.0,1.23230706]
[1753789499474,1.81007481,118550.0,118540.0,1.23230706]
[1753789501180,1.81007481,118550.0,118540.0,1.0630966]
[1753789502986,1.81007481,118550.0,118540.0,1.06296725]
[1753789503986,1.81007481,118550.0,118540.0,0.72502819]
[1753789504188,1.97928527,118550.0,118540.0,0.72502819]
[1753789504685,1.81007481,118550.0,118540.0,0.72502819]
[1753789505083,2.50123481,118550.0,118540.0,0.03162819]
[1753789505591,2.50123481,118550.0,118540.0,0.20035649]
[1753789505991,2.50123481,118550.0,118540.0,0.18938649]
[1753789506586,1.81007481,118550.0,118540.0,0.18938649]
[1753789506786,2.50123481,118550.0,118540.0,0.35791695]
[1753789508393,2.50123481,118550.0,118540.0,0.35772695]
[1753789509094,2.50123481,118550.0,118540.0,0.35730695]
[1753789509593,2.50123481,118550.0,118540.0,0.35666695]
[1753789510193,2.50123481,118550.0,118540.0,0.33950695]
[1753789510691,2.50123481,118550.0,118540.0,0.33939695]
[1753789511292,2.50123481,118550.0,118540.0,0.33802695]
[1753789511487,2.50003481,118550.0,118540.0,0.33802695]
[1753789511693,2.50003481,118550.0,118540.0,0.33248695]
[1753789512100,2.50003481,118550.0,118540.0,0.33151695]
[1753789512397,1.81007481,118550.0,118540.0,0.33151695]
[1753789512600,2.49967481,118550.0,118540.0,0.33151695]
[1753789512901,2.49967481,118550.0,118540.0,0.32614695]
[1753789513093,2.49967481,118550.0,118540.0,0.32567695]
[1753789514201,2.49967481,118550.0,118540.0,0.32557695]
[1753789514698,2.49967481,118550.0,118540.0,0.32490695]
[1753789517302,2.49967481,118550.0,118540.0,0.32247695]
[1753789518205,2.49967481,118550.0,118540.0,0.31561695]
[1753789518698,2.33046435,118550.0,118540.0,0.31561695]
[1753789518904,2.33046435,118550.0,118540.0,0.51535741]
[1753789518905,1.64086435,118550.0,118540.0,0.51535741]
[1753789519103,1.64086435,118550.0,118540.0,0.55239741]
[1753789519306,1.64086435,118550.0,118540.0,0.57513619]
[1753789520104,1.64086435,118550.0,118540.0,0.53809619]
[1753789520300,1.64086435,118550.0,118540.0,0.53481619]
[1753789520604,1.64086435,118550.0,118540.0,0.53227619]
[1753789520900,1.64086435,118550.0,118540.0,0.52824619]
[1753789521606,1.64086435,118550.0,118540.0,0.52421619]
[1753789522102,1.64086435,118550.0,118540.0,0.50102741]
[1753789522503,1.64086435,118550.0,118540.0,0.49926741]
[1753789522802,1.64086435,118550.0,118540.0,0.3864667]
[1753789523203,1.64086435,118550.0,118540.0,0.3858567]
[1753789523403,1.64086435,118550.0,118540.0,0.3824467]
[1753789523906,1.64086435,118550.0,118540.0,0.4194867]
[1753789524406,1.64086435,118550.0,118540.0,0.19386649]
[1753789524606,1.64086435,118550.0,118540.0,0.4194867]
[1753789525609,1.64086435,118550.0,118540.0,0.3824467]
[1753789529107,1.28006435,118550.0,118540.0,0.40518548]
[1753789529609,1.64086435,118550.0,118540.0,0.40518548]
[1753789530107,1.28006435,118550.0,118540.0,0.40518548]
[1753789530308,1.64086435,118550.0,118540.0,0.40518548]
[1753789531509,1.64086435,118550.0,118540.0,0.3824467]
[1753789532105,1.64086435,118550.0,118540.0,0.40518548]
[1753789532412,1.64086435,118550.0,118540.0,0.17956527]
[1753789532603,1.64086435,118550.0,118540.0,0.40518548]
[1753789534403,1.64086435,118550.0,118540.0,0.17956527]
[1753789534599,1.64086435,118550.0,118540.0,0.40518548]
[1753789534807,1.64086435,118550.0,118540.0,1.09446548]
[1753789535110,1.6262541,118550.0,118540.0,1.0717267]
[1753789537507,1.2654541,118550.0,118540.0,1.0717267]
[1753789537709,1.28007253,118550.0,118540.0,1.09443754]
[1753789538413,0.78007253,118550.0,118540.0,1.09443754]
[1753789538914,0.78007253,118550.0,118540.0,1.13147754]
[1753789539112,0.78007253,118550.0,118540.0,0.86881733]
[1753789539308,0.78007253,118550.0,118540.0,1.09443754]
[1753789539513,1.14087253,118550.0,118540.0,1.09443754]
[1753789541108,0.78007253,118550.0,118540.0,1.09443754]
[1753789541612,1.14087253,118550.0,118540.0,1.09443754]
[1753789543214,1.14087253,118550.0,118540.0,1.09435754]
[1753789545014,1.14087253,118550.0,118540.0,1.20715379]
[1753789545417,1.14087253,118550.0,118540.0,0.86873733]
[1753789545618,1.14087253,118550.0,118540.0,1.20715379]
[1753789546619,1.14087253,118550.0,118540.0,1.22891084]
[1753789548414,1.14087473,118550.0,118540.0,1.22891395]
[1753789549321,0.78007473,118550.0,118540.0,1.22891395]
[1753789550118,0.78007473,118550.0,118540.0,1.25919508]
[1753789554026,0.78007473,118550.0,118540.0,1.29623508]
[1753789555227,0.78007473,118550.0,118540.0,1.25919508]
[1753789556527,1.14087473,118550.0,118540.0,1.25919508]
[1753789558127,1.14087473,118550.0,118540.0,1.23648308]
[1753789559131,1.14087473,118550.0,118540.0,0.89806662]
[1753789559328,1.14087473,118550.0,118540.0,1.23648308]
[1753789561736,1.14087473,118550.0,118540.0,1.23648308]
[1753789562134,1.14087473,118550.0,118540.0,0.89806662]
[1753789562335,1.14087473,118550.0,118540.0,1.23648308]
[1753789562935,0.78007473,118550.0,118540.0,1.23648308]
[1753789563234,0.78007473,118550.0,118540.0,1.27352308]
[1753789569540,0.13562063,118550.0,118540.0,1.42259973]
[1753789569842,0.01562063,118550.0,118540.0,1.82043973]
[1753789570040,0.11562063,118550.0,118540.0,2.32806442]
[1753789570237,0.11562063,118550.0,118540.0,1.98915173]
[1753789570741,0.11562063,118550.0,118540.0,2.00429229]
[1753789571744,0.11562063,118550.0,118540.0,1.83558029]
[1753789571941,0.11562063,118550.0,118540.0,1.82040875]
[1753789573041,0.11562063,118550.0,118540.0,1.83770138]
[1753789573545,0.11562063,118550.0,118540.0,1.88312307]
[1753789574139,0.11562063,118550.0,118540.0,1.83770138]
[1753789578248,0.101,118550.0,118540.0,1.83770138]
[1753789582051,0.101,118550.0,118540.0,1.85287292]
[1753789583951,0.001,118550.0,118540.0,1.85287292]
[1753789588654,0.111,118550.0,118540.0,1.85287292]
[1753789592053,0.16012,118550.0,118540.0,0.74854029]
[1753789592261,1.30697594,118550.0,118540.0,0.90900563]
[1753789592750,1.36344915,118550.0,118540.0,0.22068563]
[1753789592950,1.36344915,118550.0,118540.0,0.90900563]
[1753789593147,1.36344915,118550.0,118540.0,0.8570484]
[1753789593552,0.6513785,118540.0,118530.0,0.52096324]
[1753789593856,1.14678201,118540.0,118530.0,0.9836018]
[1753789594056,1.14678201,118540.0,118530.0,1.20928324]
[1753789594358,1.1321785,118540.0,118530.0,1.31584493]
[1753789594557,1.1321785,118540.0,118530.0,1.27042324]
[1753789595058,1.1321785,118540.0,118530.0,1.31584493]
[1753789595460,1.14678549,118540.0,118530.0,1.27042324]
[1753789597160,1.14678549,118540.0,118530.0,1.29308013]
[1753789597863,1.14678549,118540.0,118530.0,1.06739869]
[1753789598065,1.14678549,118540.0,118530.0,1.29308013]
[1753789598363,1.14678549,118540.0,118530.0,1.06739869]
[1753789598558,1.14678549,118540.0,118530.0,1.29308013]
[1753789599758,1.14678549,118540.0,118530.0,1.06739869]
[1753789600069,1.14678549,118540.0,118530.0,1.29308013]
[1753789601064,1.14678549,118540.0,118530.0,1.00625869]
[1753789602061,1.14678549,118540.0,118530.0,1.18975523]
[1753789602263,1.37246693,118540.0,118530.0,0.71089689]
[1753789602763,1.87246693,118540.0,118530.0,0.68824]
[1753789602963,1.87246693,118540.0,118530.0,0.60950297]
[1753789603664,0.6504626,118530.0,118520.0,0.71085689]
[1753789603965,1.37155103,118530.0,118520.0,0.71085689]
[1753789604162,1.37155103,118530.0,118520.0,0.87961359]
[1753789605267,1.87155103,118530.0,118520.0,0.9012973]
[1753789606066,1.87155103,118530.0,118520.0,0.9013373]
[1753789606269,1.87155103,118530.0,118520.0,0.63382717]
[1753789606469,1.87255103,118530.0,118520.0,0.80258407]
[1753789606665,0.1687711,118510.0,118500.0,0.26423609]
[1753789606971,1.1312911,118510.0,118500.0,1.0146473]
[1753789607163,1.1312911,118510.0,118500.0,1.0757873]
[1753789607364,1.2578754,118510.0,118500.0,0.7725903]
[1753789607866,1.48355684,118510.0,118500.0,0.23358275]
[1753789608766,1.48355684,118510.0,118500.0,0.02261725]
[1753789609069,1.55175777,118510.0,118500.0,0.02261725]
[1753789609370,1.55175777,118510.0,118500.0,0.1687854]
[1753789609570,1.48355684,118510.0,118500.0,0.1687854]
[1753789609971,1.2578754,118510.0,118500.0,0.1687854]
[1753789610665,1.9460354,118510.0,118500.0,0.1687854]
[1753789611270,2.17171684,118510.0,118500.0,0.1687854]
[1753789611568,2.67171684,118510.0,118500.0,0.1687854]
[1753789612070,2.46060086,118510.0,118500.0,0.1687854]
[1753789612771,2.46160086,118510.0,118500.0,0.1687854]
[1753789614169,2.6872823,118510.0,118500.0,0.1687854]
[1753789614472,2.75467927,118510.0,118500.0,0.1687854]
[1753789616876,0.3625452,118500.0,118490.0,0.9835864]
[1753789617068,1.1213052,118500.0,118490.0,0.9835864]
[1753789617464,1.13694216,118500.0,118490.0,0.9835864]
[1753789620365,1.15150662,118500.0,118490.0,1.00524]
[1753789621275,1.15150662,118500.0,118490.0,1.23092144]
[1753789621573,1.15150662,118500.0,118490.0,1.00524]
[1753789622082,1.1213052,118500.0,118490.0,1.23092144]
[1753789622577,0.8788952,118500.0,118490.0,1.23092144]
[1753789622883,1.1213052,118500.0,118490.0,1.23092144]
[1753789623079,0.34931,118500.0,118490.0,1.23092144]
[1753789623277,0.3243353,118500.0,118490.0,1.23092144]
[1753789623677,0.7605053,118500.0,118490.0,1.23092144]
[1753789625287,0.7605053,118500.0,118490.0,1.25353869]
[1753789629780,0.7605053,118500.0,118490.0,0.33965725]
[1753789629976,1.36157644,118500.0,118490.0,0.2326406]
[1753789630384,1.36157644,118500.0,118490.0,0.9205606]
[1753789631287,1.86157644,118500.0,118490.0,0.9205606]
[1753789631583,1.86157644,118500.0,118490.0,0.7095736]
[1753789631786,1.86157644,118500.0,118490.0,0.8783331]
[1753789634181,1.635895,118500.0,118490.0,0.90095035]
[1753789634792,1.86157644,118500.0,118490.0,0.90095035]
[1753789635091,1.635895,118500.0,118490.0,0.90095035]
[1753789637293,1.635895,118500.0,118490.0,1.12663179]
[1753789638587,1.635895,118500.0,118490.0,0.90095035]
[1753789638787,1.635895,118500.0,118490.0,1.12663179]
[1753789639791,1.635895,118500.0,118490.0,0.90095035]
[1753789641698,1.635895,118500.0,118490.0,1.12663179]
[1753789641892,1.635895,118500.0,118490.0,1.13417426]
[1753789642092,1.635895,118500.0,118490.0,1.10401454]
[1753789642797,1.635895,118500.0,118490.0,0.8783331]
[1753789643196,1.635895,118500.0,118490.0,0.90849282]
[1753789644699,1.634455,118500.0,118490.0,1.13417426]
[1753789645901,1.634455,118500.0,118490.0,0.90849282]
[1753789647902,1.634455,118500.0,118490.0,1.13417426]
[1753789648901,1.6198653,118500.0,118490.0,1.11252066]
[1753789649103,1.63449659,118500.0,118490.0,1.13430675]
[1753789649499,1.63449659,118500.0,118490.0,0.90862531]
[1753789649706,1.63449659,118500.0,118490.0,1.13430675]
[1753789651007,1.63449659,118500.0,118490.0,0.90862531]
[1753789651404,1.63449659,118500.0,118490.0,1.13430675]
[1753789651605,1.63449659,118500.0,118490.0,0.90862531]
[1753789651808,1.63449659,118500.0,118490.0,0.93136994]
[1753789653109,1.63449659,118500.0,118490.0,1.15705138]
[1753789654004,1.63449659,118500.0,118490.0,1.13430675]
[1753789656310,1.63439659,118500.0,118490.0,1.13430675]
[1753789656705,0.62463129,118500.0,118490.0,1.15109414]
[1753789656912,0.51463129,118500.0,118490.0,1.52715611]
[1753789657312,0.61,118500.0,118490.0,1.52715611]
[1753789657612,0.11,118500.0,118490.0,1.52715611]
[1753789658308,0.1582,118500.0,118490.0,1.53015611]
[1753789658512,0.1582,118500.0,118490.0,1.53215611]
[1753789659109,0.1582,118500.0,118490.0,1.5319818]
[1753789661714,0.0482,118500.0,118490.0,1.5319818]
[1753789662015,0.0482,118500.0,118490.0,1.56227689]
[1753789662508,0.06739697,118510.0,118500.0,0.1687852]
[1753789662718,0.18281162,118510.0,118500.0,0.96854807]
[1753789663110,0.61385162,118510.0,118500.0,0.96854807]
[1753789664015,0.61385162,118510.0,118500.0,0.97054807]
[1753789665115,0.68077329,118510.0,118500.0,0.97154807]
[1753789666018,0.68077329,118510.0,118500.0,1.00184316]
[1753789667015,0.61385162,118510.0,118500.0,1.00184316]
[1753789667312,0.15281162,118510.0,118500.0,0.99598081]
[1753789667516,0.6391648,118530.0,118520.0,0.1687568]
[1753789667724,0.7001248,118530.0,118520.0,1.39060894]
[1753789668021,0.7001248,118530.0,118520.0,1.37339894]
[1753789668821,0.7011126,118530.0,118520.0,1.1649275]
[1753789669514,0.7462026,118530.0,118520.0,1.1649275]
[1753789669719,0.7462026,118530.0,118520.0,1.1477175]
[1753789669915,0.7462026,118530.0,118520.0,1.13092433]
[1753789673821,0.7462026,118530.0,118520.0,1.15362843]
[1753789678824,0.6681826,118530.0,118520.0,1.12608843]
[1753789681324,0.68277135,118530.0,118520.0,1.12608843]
[1753789681723,0.6681826,118530.0,118520.0,1.12608843]
[1753789682018,0.68277074,118530.0,118520.0,1.12608843]
[1753789682225,0.68277064,118530.0,118520.0,1.12608843]
[1753789683326,0.57277064,118530.0,118520.0,1.12608843]
[1753789683624,0.69277064,118530.0,118520.0,1.12608843]
[1753789683824,0.77079064,118530.0,118520.0,1.12608843]
[1753789684726,1.13159064,118530.0,118520.0,1.12608843]
[1753789685123,0.77079064,118530.0,118520.0,1.12608843]
[1753789685621,0.77079064,118530.0,118520.0,0.43892843]
[1753789685827,0.77079064,118530.0,118520.0,1.12560843]
[1753789686129,1.13159064,118530.0,118520.0,1.12560843]
[1753789686522,0.77079064,118530.0,118520.0,1.12560843]
[1753789686823,0.65079064,118530.0,118520.0,1.14281843]
[1753789687026,0.77079064,118530.0,118520.0,1.17311352]
[1753789687828,0.60204814,118530.0,118520.0,1.17311352]
[1753789688030,0.77079064,118530.0,118520.0,1.17311352]
[1753789688632,0.60204814,118530.0,118520.0,1.17311352]
[1753789688834,0.77079064,118530.0,118520.0,1.17311352]
[1753789692132,0.60204814,118530.0,118520.0,1.17311352]
[1753789692934,0.60204814,118530.0,118520.0,1.51120942]
[1753789695736,0.22591814,118530.0,118520.0,1.49399942]
[1753789695937,0.61579814,118530.0,118520.0,1.51120942]
[1753789696236,0.36711814,118530.0,118520.0,1.51120942]
[1753789696534,0.61579814,118530.0,118520.0,1.73689086]
[1753789698134,0.36711814,118530.0,118520.0,1.78231255]
[1753789698435,0.61579814,118530.0,118520.0,1.78231255]
[1753789699338,0.18067814,118530.0,118520.0,1.78231255]
[1753789700032,0.40465814,118530.0,118520.0,1.78231255]
[1753789700339,0.47922814,118530.0,118520.0,1.78231255]
[1753789701638,0.13458814,118530.0,118520.0,1.75201746]
[1753789701829,0.18306814,118530.0,118520.0,1.75201746]
[1753789702032,0.30750814,118530.0,118520.0,1.75201746]
[1753789702336,0.48161814,118530.0,118520.0,1.75201746]
[1753789710434,0.23293814,118530.0,118520.0,1.75201746]
[1753789711147,0.48161814,118530.0,118520.0,1.75401746]
[1753789711447,0.62281814,118530.0,118520.0,1.75401746]
[1753789712147,0.62281814,118530.0,118520.0,1.73889882]
[1753789712842,0.62281814,118530.0,118520.0,1.05321882]
[1753789713044,0.62281814,118530.0,118520.0,1.73929882]
[1753789714351,0.62281814,118530.0,118520.0,1.78472051]
[1753789714549,0.62281814,118530.0,118520.0,1.73929882]
[1753789715050,0.62281814,118530.0,118520.0,1.78471949]
[1753789717350,0.13458814,118530.0,118520.0,1.78471949]
[1753789717551,0.01458814,118530.0,118520.0,1.78471949]
[1753789717754,0.17306814,118530.0,118520.0,1.78471949]
[1753789718052,0.06306814,118530.0,118520.0,1.78471949]
[1753789718353,0.06306814,118530.0,118520.0,1.75441746]
[1753789718956,0.16306814,118530.0,118520.0,1.75441746]
[1753789719155,0.06306814,118530.0,118520.0,1.75441746]
[1753789719354,0.16306814,118530.0,118520.0,1.75441746]
[1753789719955,0.06306814,118530.0,118520.0,1.75441746]
[1753789720358,0.51234814,118530.0,118520.0,1.75441746]
[1753789720558,0.62281814,118530.0,118520.0,1.75441746]
[1753789722259,0.60823,118530.0,118520.0,1.70899577]
[1753789722653,0.60823,118530.0,118520.0,1.76955803]
[1753789723156,0.60823,118530.0,118520.0,1.31819515]
[1753789723357,0.60823,118530.0,118520.0,1.76955803]
[1753789724965,0.60823,118530.0,118520.0,1.70899577]
[1753789726768,0.60823,118530.0,118520.0,1.76525917]
[1753789727768,0.35955,118530.0,118520.0,1.76525917]
[1753789729166,0.42723,118530.0,118520.0,1.76525917]
[1753789729870,0.60118,118530.0,118520.0,1.76525917]
[1753789746584,0.60118,118530.0,118520.0,1.82582143]
[1753789752192,0.61581295,118530.0,118520.0,1.76525917]
[1753789754691,0.37418295,118530.0,118520.0,1.76525917]
[1753789755391,0.47113,118550.0,118540.0,0.1962682]
[1753789755595,0.49113,118550.0,118540.0,1.81907559]
[1753789755786,0.49113,118550.0,118540.0,1.80186559]
[1753789756181,0.49113,118550.0,118540.0,1.63265683]
[1753789756486,0.659844,118550.0,118540.0,1.63265683]
[1753789756690,0.49113,118550.0,118540.0,1.63265683]
[1753789757393,0.659844,118550.0,118540.0,1.63265683]
[1753789757598,0.49213,118550.0,118540.0,1.63265683]
[1753789758294,0.49213,118550.0,118540.0,1.67811537]
[1753789758591,0.49213,118550.0,118540.0,1.67808572]
[1753789758992,0.660844,118550.0,118540.0,1.67808572]
[1753789759294,0.660844,118550.0,118540.0,1.63262718]
[1753789760195,0.49213,118550.0,118540.0,1.63262718]
[1753789762199,0.660844,118550.0,118540.0,1.6477807]
[1753789762798,0.49213,118550.0,118540.0,1.6477807]
[1753789763398,0.660844,118550.0,118540.0,1.6477807]
[1753789763699,0.49213,118550.0,118540.0,1.6477807]
[1753789765403,0.49213,118550.0,118540.0,1.64776562]
[1753789767909,0.49213,118550.0,118540.0,1.28696562]
[1753789768109,0.50674222,118550.0,118540.0,1.31722173]
[1753789770809,0.50674222,118550.0,118540.0,0.99601421]
[1753789771010,0.50674222,118550.0,118540.0,1.33443173]
[1753789772211,0.50674222,118550.0,118540.0,0.99601421]
[1753789772412,0.50674222,118550.0,118540.0,1.33443173]
[1753789776716,0.50674222,118550.0,118540.0,1.50364049]
[1753789776911,0.50674222,118550.0,118540.0,1.33443173]
[1753789777122,0.50674222,118550.0,118540.0,1.30417562]
[1753789777320,0.50674222,118550.0,118540.0,1.66497562]
[1753789778125,0.50674222,118550.0,118540.0,1.83418438]
[1753789782222,0.08453222,118550.0,118540.0,1.83418438]
[1753789784722,0.37837222,118550.0,118540.0,1.83418438]
[1753789784926,0.52141222,118550.0,118540.0,1.66497562]
[1753789786326,0.52141222,118550.0,118540.0,1.3265581]
[1753789786527,0.52141222,118550.0,118540.0,1.66497562]
[1753789788023,0.52141222,118550.0,118540.0,1.83418438]
[1753789788828,0.69012622,118550.0,118540.0,1.66497562]
[1753789789729,0.52141222,118550.0,118540.0,1.66497562]
[1753789790026,0.52141222,118550.0,118540.0,1.30417562]
[1753789791531,0.69012612,118550.0,118540.0,1.30417562]
[1753789792629,0.52141222,118550.0,118540.0,1.30417562]
[1753789794033,0.69012612,118550.0,118540.0,1.30417562]
[1753789797737,0.52141222,118550.0,118540.0,1.66497562]
[1753789799130,0.52141222,118550.0,118540.0,1.83418438]
[1753789800635,0.69012642,118550.0,118540.0,1.83418438]
[1753789801534,0.69012642,118550.0,118540.0,1.66497562]
[1753789801740,0.52141222,118550.0,118540.0,1.66497562]
[1753789802128,0.69012642,118550.0,118540.0,1.66497562]
[1753789803535,0.52141222,118550.0,118540.0,1.6647914]
[1753789804036,0.69012642,118550.0,118540.0,1.6647914]
[1753789804337,0.52141222,118550.0,118540.0,1.6647914]
[1753789805935,0.69012642,118550.0,118540.0,1.6647914]
[1753789806744,0.69012642,118550.0,118540.0,1.60072286]
[1753789809839,0.69012642,118550.0,118540.0,1.26230534]
[1753789810236,0.69012642,118550.0,118540.0,1.60072286]
[1753789810933,0.52141222,118550.0,118540.0,1.60072286]
[1753789811143,0.52141222,118550.0,118540.0,1.78714162]
[1753789812239,0.52141222,118550.0,118540.0,1.83260016]
[1753789812435,0.03561222,118550.0,118540.0,1.83260016]
[1753789812635,0.01561222,118550.0,118540.0,1.83260016]
[1753789812839,0.01561222,118550.0,118540.0,1.78714162]
[1753789813044,0.111,118550.0,118540.0,1.78714162]
[1753789814438,0.001,118550.0,118540.0,1.78714162]
[1753789814640,0.111,118550.0,118540.0,1.78714162]
[1753789815339,0.001,118550.0,118540.0,1.78714162]
[1753789815540,0.101,118550.0,118540.0,1.78714162]
[1753789816238,0.05015,118550.0,118540.0,1.78714162]
[1753789816540,0.001,118550.0,118540.0,1.78714162]